{"text_format":"1","workbook":"xlsx","n_sheets":1,"sheets":["Sheet1"],"not_rendered":{"charts":0,"images":1,"macros":1,"external_links":1,"defined_names":21,"comments":0,"pivot_tables":0},"unopened":[],"bounds":{"document_bytes":16777216,"sheet_cells":100000,"rows_first":2000,"rows_last":500,"rows_between":2000,"halvings":0,"cell_chars":16384,"cell_head_chars":4096},"cells_cut":0,"cells_raw":0,"read":"whole","date_system":"1900"}

{"sheet":"Sheet1","index":0,"n_rows":345,"n_cols":19,"rows_kept":345,"cut":false,"hidden":false,"merged":[[25,0,26,1],[0,0,0,12],[2,5,4,12],[12,1,12,3],[16,0,16,3],[17,1,17,3],[18,1,18,3],[19,1,19,3],[20,1,20,3],[21,1,21,3],[22,1,22,3],[23,1,23,3]]}
["NAVY  -   Deal Offer Form  -  NAVY                  NAVY  -   Deal Offer Form  -  NAVY                      NAVY  -   Deal Offer Form  -  NAVY                   NAVY  -   Deal Offer Form  -  NAVY"]
[]
["Submit Date:",{"$f":"TODAY()","v":"2026-06-11"},"Buyer Name:",null,null,"Notes and Instructions:  All Promotions offered to the Navy Exchange must be accompanied with this completed document.  All yellow highlighted sections must be filled in. Parent RIN#s are not required but helpful. "]
[]
["Supplier Name:",null,"Lawson Group:"]
["Vendor Number(Duns#)",null,null,null,null,"v01.00.220406b"]
["Contact Name:",null,"Phone Number"]
["Contact Email:"]
[]
["Type of Deal","Scan Back",{"$f":"IF(B10=\"Advertising\",\"Type\",IF(B10=\"Ad & Scanback\",\"Type\",IF(B10=\"Ad & Bill Back\",\"Type\",\"\")))","v":""}]
["Week #",null,"Total $",{"$f":"(L334+'[1]Additional Items'!L56)","v":0}]
["Advertised",null,"RMS Dept:"]
["Description"]
["Start Date",null,"End Date"]
["Method of Payment",null,"RMA/AUTH#"]
[]
["Locations"]
["Worldwide","Yes"]
[{"$f":"IF($B$18=\"Yes\",\"\",\"Conus\")","v":""}]
[{"$f":"IF($B$18=\"Yes\",\"\",\"Alaska/Hawaii\")","v":""}]
[{"$f":"IF($B$18=\"Yes\",\"\",\"Europe\")","v":""}]
[{"$f":"IF($B$18=\"Yes\",\"\",\"Pacific\")","v":""}]
[{"$f":"IF($B$18=\"Yes\",\"\",\"Contingency\")","v":""}]
["Online ","Yes"]
[]
[]
[]
[]
["UPC","Model/Description","Parent RIN#","Navy RIN#","Reg Cost","Reg Sell","Promo Sell","Total Deal /IR","Scanback $","Bill Back / Markdown %","Qty Sold","Total Bill back Amount","Comments /Program Authorization"]
[null,null,null,null,null,null,null,null,null,null,null,null,null,{"$f":"(F30-G30)/F30","v":{"$error":"#DIV/0!"}},{"$f":"F30*N30","v":{"$error":"#DIV/0!"}},null,5.2633684252632394E-2,{"$f":"F30*Q30","v":0},{"$f":"F30-R30","v":0}]
[null,null,null,null,null,null,null,null,null,null,null,null,null,{"$f":"(F31-G31)/F31","v":{"$error":"#DIV/0!"}},{"$f":"F31*N31","v":{"$error":"#DIV/0!"}},null,0.15790315823159237,{"$f":"F31*Q31","v":0},{"$f":"F31-R31","v":0}]
[null,null,null,null,null,null,null,null,null,null,null,null,null,{"$f":"(F32-G32)/F32","v":{"$error":"#DIV/0!"}},{"$error":"#DIV/0!"},null,0.12281286569201426,0,0]
[null,null,null,null,null,null,null,null,null,null,null,null,null,{"$error":"#DIV/0!"},{"$error":"#DIV/0!"},null,0.12281286569201426,0,0]
[null,null,null,null,null,null,null,null,null,null,null,null,null,{"$error":"#DIV/0!"},{"$error":"#DIV/0!"},null,null,0,0]
[null,null,null,null,null,null,null,null,null,null,null,null,null,{"$error":"#DIV/0!"},{"$error":"#DIV/0!"},null,null,0,0]
[null,null,null,null,null,null,null,null,null,null,null,null,null,{"$error":"#DIV/0!"},{"$error":"#DIV/0!"},null,null,0]
[null,null,null,null,null,null,null,null,null,null,null,null,null,{"$error":"#DIV/0!"},{"$error":"#DIV/0!"},null,null,0]
[null,null,null,null,null,null,null,null,null,null,null,null,null,{"$error":"#DIV/0!"},{"$error":"#DIV/0!"},null,null,0]
[null,null,null,null,null,null,null,null,null,null,null,null,null,{"$error":"#DIV/0!"},{"$error":"#DIV/0!"},null,null,0]
[null,null,null,null,null,null,null,null,null,null,null,null,null,{"$error":"#DIV/0!"},{"$error":"#DIV/0!"},null,null,0]
[null,null,null,null,null,null,null,null,null,null,null,null,null,{"$error":"#DIV/0!"},{"$error":"#DIV/0!"},null,null,0]
[null,null,null,null,null,null,null,null,null,null,null,null,null,{"$error":"#DIV/0!"},{"$error":"#DIV/0!"},null,null,0]
[null,null,null,null,null,null,null,null,null,null,null,null,null,{"$error":"#DIV/0!"},{"$error":"#DIV/0!"},null,null,0]
[null,null,null,null,null,null,null,null,null,null,null,null,null,{"$error":"#DIV/0!"},{"$error":"#DIV/0!"},null,null,0]
[null,null,null,null,null,null,null,null,null,null,null,null,null,{"$error":"#DIV/0!"},{"$error":"#DIV/0!"},null,null,0]
[null,null,null,null,null,null,null,null,null,null,null,null,null,{"$error":"#DIV/0!"},{"$error":"#DIV/0!"},null,null,0]
[null,null,null,null,null,null,null,null,null,null,null,null,null,{"$error":"#DIV/0!"},{"$error":"#DIV/0!"},null,null,0]
[null,null,null,null,null,null,null,null,null,null,null,null,null,{"$error":"#DIV/0!"},{"$error":"#DIV/0!"},null,null,0]
[null,null,null,null,null,null,null,null,null,null,null,null,null,{"$error":"#DIV/0!"},{"$error":"#DIV/0!"},null,null,0]
[null,null,null,null,null,null,null,null,null,null,null,null,null,{"$error":"#DIV/0!"},{"$error":"#DIV/0!"},null,null,0]
[null,null,null,null,null,null,null,null,null,null,null,null,null,{"$error":"#DIV/0!"},{"$error":"#DIV/0!"},null,null,0]
[null,null,null,null,null,null,null,null,null,null,null,null,null,{"$error":"#DIV/0!"},{"$error":"#DIV/0!"},null,null,0]
[null,null,null,null,null,null,null,null,null,null,null,null,null,{"$error":"#DIV/0!"},{"$error":"#DIV/0!"},null,null,0]
[null,null,null,null,null,null,null,null,null,null,null,null,null,{"$error":"#DIV/0!"},{"$error":"#DIV/0!"},null,null,0]
[null,null,null,null,null,null,null,null,null,null,null,null,null,{"$error":"#DIV/0!"},{"$error":"#DIV/0!"},null,null,0]
[null,null,null,null,null,null,null,null,null,null,null,null,null,{"$error":"#DIV/0!"},{"$error":"#DIV/0!"},null,null,0]
[null,null,null,null,null,null,null,null,null,null,null,null,null,{"$error":"#DIV/0!"},{"$error":"#DIV/0!"},null,null,0]
[null,null,null,null,null,null,null,null,null,null,null,null,null,{"$error":"#DIV/0!"},{"$error":"#DIV/0!"},null,null,0]
[null,null,null,null,null,null,null,null,null,null,null,null,null,{"$error":"#DIV/0!"},{"$error":"#DIV/0!"},null,null,0]
[null,null,null,null,null,null,null,null,null,null,null,null,null,{"$error":"#DIV/0!"},{"$error":"#DIV/0!"},null,null,0]
[null,null,null,null,null,null,null,null,null,null,null,null,null,{"$error":"#DIV/0!"},{"$error":"#DIV/0!"},null,null,0]
[null,null,null,null,null,null,null,null,null,null,null,null,null,{"$error":"#DIV/0!"},{"$error":"#DIV/0!"},null,null,0]
[null,null,null,null,null,null,null,null,null,null,null,null,null,{"$error":"#DIV/0!"},{"$error":"#DIV/0!"},null,null,0]
[null,null,null,null,null,null,null,null,null,null,null,null,null,{"$error":"#DIV/0!"},{"$error":"#DIV/0!"},null,null,0]
[null,null,null,null,null,null,null,null,null,null,null,null,null,{"$error":"#DIV/0!"},{"$error":"#DIV/0!"},null,null,0]
[null,null,null,null,null,null,null,null,null,null,null,null,null,{"$error":"#DIV/0!"},{"$error":"#DIV/0!"},null,null,0]
[null,null,null,null,null,null,null,null,null,null,null,null,null,{"$error":"#DIV/0!"},{"$error":"#DIV/0!"},null,null,0]
[null,null,null,null,null,null,null,null,null,null,null,null,null,{"$error":"#DIV/0!"},{"$error":"#DIV/0!"},null,null,0]
[null,null,null,null,null,null,null,null,null,null,null,null,null,{"$error":"#DIV/0!"},{"$error":"#DIV/0!"},null,null,0]
[null,null,null,null,null,null,null,null,null,null,null,null,null,{"$error":"#DIV/0!"},{"$error":"#DIV/0!"},null,null,0]
[null,null,null,null,null,null,null,null,null,null,null,null,null,{"$error":"#DIV/0!"},{"$error":"#DIV/0!"},null,null,0]
[null,null,null,null,null,null,null,null,null,null,null,null,null,{"$error":"#DIV/0!"},{"$error":"#DIV/0!"},null,null,0]
[null,null,null,null,null,null,null,null,null,null,null,null,null,{"$error":"#DIV/0!"},{"$error":"#DIV/0!"},null,null,0]
[null,null,null,null,null,null,null,null,null,null,null,null,null,{"$error":"#DIV/0!"},{"$error":"#DIV/0!"},null,null,0]
[null,null,null,null,null,null,null,null,null,null,null,null,null,{"$error":"#DIV/0!"},{"$error":"#DIV/0!"},null,null,0]
[null,null,null,null,null,null,null,null,null,null,null,null,null,{"$error":"#DIV/0!"},{"$error":"#DIV/0!"},null,null,0]
[null,null,null,null,null,null,null,null,null,null,null,null,null,{"$error":"#DIV/0!"},{"$error":"#DIV/0!"},null,null,0]
[null,null,null,null,null,null,null,null,null,null,null,null,null,{"$error":"#DIV/0!"},{"$error":"#DIV/0!"},null,null,0]
[null,null,null,null,null,null,null,null,null,null,null,null,null,{"$error":"#DIV/0!"},{"$error":"#DIV/0!"},null,null,0]
[null,null,null,null,null,null,null,null,null,null,null,null,null,{"$error":"#DIV/0!"},{"$error":"#DIV/0!"},null,null,0]
[null,null,null,null,null,null,null,null,null,null,null,null,null,{"$error":"#DIV/0!"},{"$error":"#DIV/0!"},null,null,0]
[null,null,null,null,null,null,null,null,null,null,null,null,null,{"$error":"#DIV/0!"},{"$error":"#DIV/0!"},null,null,0]
[null,null,null,null,null,null,null,null,null,null,null,null,null,{"$error":"#DIV/0!"},{"$error":"#DIV/0!"},null,null,0]
[null,null,null,null,null,null,null,null,null,null,null,null,null,{"$error":"#DIV/0!"},{"$error":"#DIV/0!"},null,null,0]
[null,null,null,null,null,null,null,null,null,null,null,null,null,{"$error":"#DIV/0!"},{"$error":"#DIV/0!"},null,null,0]
[null,null,null,null,null,null,null,null,null,null,null,null,null,{"$error":"#DIV/0!"},{"$error":"#DIV/0!"},null,null,0]
[null,null,null,null,null,null,null,null,null,null,null,null,null,{"$error":"#DIV/0!"},{"$error":"#DIV/0!"},null,null,0]
[null,null,null,null,null,null,null,null,null,null,null,null,null,{"$error":"#DIV/0!"},{"$error":"#DIV/0!"},null,null,0]
[null,null,null,null,null,null,null,null,null,null,null,null,null,{"$error":"#DIV/0!"},{"$error":"#DIV/0!"},null,null,0]
[null,null,null,null,null,null,null,null,null,null,null,null,null,{"$error":"#DIV/0!"},{"$error":"#DIV/0!"},null,null,0]
[null,null,null,null,null,null,null,null,null,null,null,null,null,{"$error":"#DIV/0!"},{"$error":"#DIV/0!"},null,null,0]
[null,null,null,null,null,null,null,null,null,null,null,null,null,{"$error":"#DIV/0!"},{"$error":"#DIV/0!"},null,null,0]
[null,null,null,null,null,null,null,null,null,null,null,null,null,{"$error":"#DIV/0!"},{"$error":"#DIV/0!"},null,null,0]
[null,null,null,null,null,null,null,null,null,null,null,null,null,{"$error":"#DIV/0!"},{"$error":"#DIV/0!"},null,null,0]
[null,null,null,null,null,null,null,null,null,null,null,null,null,{"$error":"#DIV/0!"},{"$f":"F95*N95","v":{"$error":"#DIV/0!"}},null,null,{"$f":"F95*Q95","v":0}]
[null,null,null,null,null,null,null,null,null,null,null,null,null,{"$f":"(F96-G96)/F96","v":{"$error":"#DIV/0!"}},{"$error":"#DIV/0!"},null,null,0]
[null,null,null,null,null,null,null,null,null,null,null,null,null,{"$error":"#DIV/0!"},{"$error":"#DIV/0!"},null,null,0]
[null,null,null,null,null,null,null,null,null,null,null,null,null,{"$error":"#DIV/0!"},{"$error":"#DIV/0!"},null,null,0]
[null,null,null,null,null,null,null,null,null,null,null,null,null,{"$error":"#DIV/0!"},{"$error":"#DIV/0!"},null,null,0]
[null,null,null,null,null,null,null,null,null,null,null,null,null,{"$error":"#DIV/0!"},{"$error":"#DIV/0!"},null,null,0]
[null,null,null,null,null,null,null,null,null,null,null,null,null,{"$error":"#DIV/0!"},{"$error":"#DIV/0!"},null,null,0]
[null,null,null,null,null,null,null,null,null,null,null,null,null,{"$error":"#DIV/0!"},{"$error":"#DIV/0!"},null,null,0]
[null,null,null,null,null,null,null,null,null,null,null,null,null,{"$error":"#DIV/0!"},{"$error":"#DIV/0!"},null,null,0]
[null,null,null,null,null,null,null,null,null,null,null,null,null,{"$error":"#DIV/0!"},{"$error":"#DIV/0!"},null,null,0]
[null,null,null,null,null,null,null,null,null,null,null,null,null,{"$error":"#DIV/0!"},{"$error":"#DIV/0!"},null,null,0]
[null,null,null,null,null,null,null,null,null,null,null,null,null,{"$error":"#DIV/0!"},{"$error":"#DIV/0!"},null,null,0]
[null,null,null,null,null,null,null,null,null,null,null,null,null,{"$error":"#DIV/0!"},{"$error":"#DIV/0!"},null,null,0]
[null,null,null,null,null,null,null,null,null,null,null,null,null,{"$error":"#DIV/0!"},{"$error":"#DIV/0!"},null,null,0]
[null,null,null,null,null,null,null,null,null,null,null,null,null,{"$error":"#DIV/0!"},{"$error":"#DIV/0!"},null,null,0]
[null,null,null,null,null,null,null,null,null,null,null,null,null,{"$error":"#DIV/0!"},{"$error":"#DIV/0!"},null,null,0]
[null,null,null,null,null,null,null,null,null,null,null,null,null,{"$error":"#DIV/0!"},{"$error":"#DIV/0!"},null,null,0]
[null,null,null,null,null,null,null,null,null,null,null,null,null,{"$error":"#DIV/0!"},{"$error":"#DIV/0!"},null,null,0]
[null,null,null,null,null,null,null,null,null,null,null,null,null,{"$error":"#DIV/0!"},{"$error":"#DIV/0!"},null,null,0]
[null,null,null,null,null,null,null,null,null,null,null,null,null,{"$error":"#DIV/0!"},{"$error":"#DIV/0!"},null,null,0]
[null,null,null,null,null,null,null,null,null,null,null,null,null,{"$error":"#DIV/0!"},{"$error":"#DIV/0!"},null,null,0]
[null,null,null,null,null,null,null,null,null,null,null,null,null,{"$error":"#DIV/0!"},{"$error":"#DIV/0!"},null,null,0]
[null,null,null,null,null,null,null,null,null,null,null,null,null,{"$error":"#DIV/0!"},{"$error":"#DIV/0!"},null,null,0]
[null,null,null,null,null,null,null,null,null,null,null,null,null,{"$error":"#DIV/0!"},{"$error":"#DIV/0!"},null,null,0]
[null,null,null,null,null,null,null,null,null,null,null,null,null,{"$error":"#DIV/0!"},{"$error":"#DIV/0!"},null,null,0]
[null,null,null,null,null,null,null,null,null,null,null,null,null,{"$error":"#DIV/0!"},{"$error":"#DIV/0!"},null,null,0]
[null,null,null,null,null,null,null,null,null,null,null,null,null,{"$error":"#DIV/0!"},{"$error":"#DIV/0!"},null,null,0]
[null,null,null,null,null,null,null,null,null,null,null,null,null,{"$error":"#DIV/0!"},{"$error":"#DIV/0!"},null,null,0]
[null,null,null,null,null,null,null,null,null,null,null,null,null,{"$error":"#DIV/0!"},{"$error":"#DIV/0!"},null,null,0]
[null,null,null,null,null,null,null,null,null,null,null,null,null,{"$error":"#DIV/0!"},{"$error":"#DIV/0!"},null,null,0]
[null,null,null,null,null,null,null,null,null,null,null,null,null,{"$error":"#DIV/0!"},{"$error":"#DIV/0!"},null,null,0]
[null,null,null,null,null,null,null,null,null,null,null,null,null,{"$error":"#DIV/0!"},{"$error":"#DIV/0!"},null,null,0]
[null,null,null,null,null,null,null,null,null,null,null,null,null,{"$error":"#DIV/0!"},{"$error":"#DIV/0!"},null,null,0]
[null,null,null,null,null,null,null,null,null,null,null,null,null,{"$error":"#DIV/0!"},{"$error":"#DIV/0!"},null,null,0]
[null,null,null,null,null,null,null,null,null,null,null,null,null,{"$error":"#DIV/0!"},{"$error":"#DIV/0!"},null,null,0]
[null,null,null,null,null,null,null,null,null,null,null,null,null,{"$error":"#DIV/0!"},{"$error":"#DIV/0!"},null,null,0]
[null,null,null,null,null,null,null,null,null,null,null,null,null,{"$error":"#DIV/0!"},{"$error":"#DIV/0!"},null,null,0]
[null,null,null,null,null,null,null,null,null,null,null,null,null,{"$error":"#DIV/0!"},{"$error":"#DIV/0!"},null,null,0]
[null,null,null,null,null,null,null,null,null,null,null,null,null,{"$error":"#DIV/0!"},{"$error":"#DIV/0!"},null,null,0]
[null,null,null,null,null,null,null,null,null,null,null,null,null,{"$error":"#DIV/0!"},{"$error":"#DIV/0!"},null,null,0]
[null,null,null,null,null,null,null,null,null,null,null,null,null,{"$error":"#DIV/0!"},{"$error":"#DIV/0!"},null,null,0]
[null,null,null,null,null,null,null,null,null,null,null,null,null,{"$error":"#DIV/0!"},{"$error":"#DIV/0!"},null,null,0]
[null,null,null,null,null,null,null,null,null,null,null,null,null,{"$error":"#DIV/0!"},{"$error":"#DIV/0!"},null,null,0]
[null,null,null,null,null,null,null,null,null,null,null,null,null,{"$error":"#DIV/0!"},{"$error":"#DIV/0!"},null,null,0]
[null,null,null,null,null,null,null,null,null,null,null,null,null,{"$error":"#DIV/0!"},{"$error":"#DIV/0!"},null,null,0]
[null,null,null,null,null,null,null,null,null,null,null,null,null,{"$error":"#DIV/0!"},{"$error":"#DIV/0!"},null,null,0]
[null,null,null,null,null,null,null,null,null,null,null,null,null,{"$error":"#DIV/0!"},{"$error":"#DIV/0!"},null,null,0]
[null,null,null,null,null,null,null,null,null,null,null,null,null,{"$error":"#DIV/0!"},{"$error":"#DIV/0!"},null,null,0]
[null,null,null,null,null,null,null,null,null,null,null,null,null,{"$error":"#DIV/0!"},{"$error":"#DIV/0!"},null,null,0]
[null,null,null,null,null,null,null,null,null,null,null,null,null,{"$error":"#DIV/0!"},{"$error":"#DIV/0!"},null,null,0]
[null,null,null,null,null,null,null,null,null,null,null,null,null,{"$error":"#DIV/0!"},{"$error":"#DIV/0!"},null,null,0]
[null,null,null,null,null,null,null,null,null,null,null,null,null,{"$error":"#DIV/0!"},{"$error":"#DIV/0!"},null,null,0]
[null,null,null,null,null,null,null,null,null,null,null,null,null,{"$error":"#DIV/0!"},{"$error":"#DIV/0!"},null,null,0]
[null,null,null,null,null,null,null,null,null,null,null,null,null,{"$error":"#DIV/0!"},{"$error":"#DIV/0!"},null,null,0]
[null,null,null,null,null,null,null,null,null,null,null,null,null,{"$error":"#DIV/0!"},{"$error":"#DIV/0!"},null,null,0]
[null,null,null,null,null,null,null,null,null,null,null,null,null,{"$error":"#DIV/0!"},{"$error":"#DIV/0!"},null,null,0]
[null,null,null,null,null,null,null,null,null,null,null,null,null,{"$error":"#DIV/0!"},{"$error":"#DIV/0!"},null,null,0]
[null,null,null,null,null,null,null,null,null,null,null,null,null,{"$error":"#DIV/0!"},{"$error":"#DIV/0!"},null,null,0]
[null,null,null,null,null,null,null,null,null,null,null,null,null,{"$error":"#DIV/0!"},{"$error":"#DIV/0!"},null,null,0]
[null,null,null,null,null,null,null,null,null,null,null,null,null,{"$error":"#DIV/0!"},{"$error":"#DIV/0!"},null,null,0]
[null,null,null,null,null,null,null,null,null,null,null,null,null,{"$error":"#DIV/0!"},{"$error":"#DIV/0!"},null,null,0]
[null,null,null,null,null,null,null,null,null,null,null,null,null,{"$error":"#DIV/0!"},{"$error":"#DIV/0!"},null,null,0]
[null,null,null,null,null,null,null,null,null,null,null,null,null,{"$error":"#DIV/0!"},{"$error":"#DIV/0!"},null,null,0]
[null,null,null,null,null,null,null,null,null,null,null,null,null,{"$error":"#DIV/0!"},{"$error":"#DIV/0!"},null,null,0]
[null,null,null,null,null,null,null,null,null,null,null,null,null,{"$error":"#DIV/0!"},{"$f":"F159*N159","v":{"$error":"#DIV/0!"}},null,null,{"$f":"F159*Q159","v":0}]
[null,null,null,null,null,null,null,null,null,null,null,null,null,{"$f":"(F160-G160)/F160","v":{"$error":"#DIV/0!"}},{"$error":"#DIV/0!"},null,null,0]
[null,null,null,null,null,null,null,null,null,null,null,null,null,{"$error":"#DIV/0!"},{"$error":"#DIV/0!"},null,null,0]
[null,null,null,null,null,null,null,null,null,null,null,null,null,{"$error":"#DIV/0!"},{"$error":"#DIV/0!"},null,null,0]
[null,null,null,null,null,null,null,null,null,null,null,null,null,{"$error":"#DIV/0!"},{"$error":"#DIV/0!"},null,null,0]
[null,null,null,null,null,null,null,null,null,null,null,null,null,{"$error":"#DIV/0!"},{"$error":"#DIV/0!"},null,null,0]
[null,null,null,null,null,null,null,null,null,null,null,null,null,{"$error":"#DIV/0!"},{"$error":"#DIV/0!"},null,null,0]
[null,null,null,null,null,null,null,null,null,null,null,null,null,{"$error":"#DIV/0!"},{"$error":"#DIV/0!"},null,null,0]
[null,null,null,null,null,null,null,null,null,null,null,null,null,{"$error":"#DIV/0!"},{"$error":"#DIV/0!"},null,null,0]
[null,null,null,null,null,null,null,null,null,null,null,null,null,{"$error":"#DIV/0!"},{"$error":"#DIV/0!"},null,null,0]
[null,null,null,null,null,null,null,null,null,null,null,null,null,{"$error":"#DIV/0!"},{"$error":"#DIV/0!"},null,null,0]
[null,null,null,null,null,null,null,null,null,null,null,null,null,{"$error":"#DIV/0!"},{"$error":"#DIV/0!"},null,null,0]
[null,null,null,null,null,null,null,null,null,null,null,null,null,{"$error":"#DIV/0!"},{"$error":"#DIV/0!"},null,null,0]
[null,null,null,null,null,null,null,null,null,null,null,null,null,{"$error":"#DIV/0!"},{"$error":"#DIV/0!"},null,null,0]
[null,null,null,null,null,null,null,null,null,null,null,null,null,{"$error":"#DIV/0!"},{"$error":"#DIV/0!"},null,null,0]
[null,null,null,null,null,null,null,null,null,null,null,null,null,{"$error":"#DIV/0!"},{"$error":"#DIV/0!"},null,null,0]
[null,null,null,null,null,null,null,null,null,null,null,null,null,{"$error":"#DIV/0!"},{"$error":"#DIV/0!"},null,null,0]
[null,null,null,null,null,null,null,null,null,null,null,null,null,{"$error":"#DIV/0!"},{"$error":"#DIV/0!"},null,null,0]
[null,null,null,null,null,null,null,null,null,null,null,null,null,{"$error":"#DIV/0!"},{"$error":"#DIV/0!"},null,null,0]
[null,null,null,null,null,null,null,null,null,null,null,null,null,{"$error":"#DIV/0!"},{"$error":"#DIV/0!"},null,null,0]
[null,null,null,null,null,null,null,null,null,null,null,null,null,{"$error":"#DIV/0!"},{"$error":"#DIV/0!"},null,null,0]
[null,null,null,null,null,null,null,null,null,null,null,null,null,{"$error":"#DIV/0!"},{"$error":"#DIV/0!"},null,null,0]
[null,null,null,null,null,null,null,null,null,null,null,null,null,{"$error":"#DIV/0!"},{"$error":"#DIV/0!"},null,null,0]
[null,null,null,null,null,null,null,null,null,null,null,null,null,{"$error":"#DIV/0!"},{"$error":"#DIV/0!"},null,null,0]
[null,null,null,null,null,null,null,null,null,null,null,null,null,{"$error":"#DIV/0!"},{"$error":"#DIV/0!"},null,null,0]
[null,null,null,null,null,null,null,null,null,null,null,null,null,{"$error":"#DIV/0!"},{"$error":"#DIV/0!"},null,null,0]
[null,null,null,null,null,null,null,null,null,null,null,null,null,{"$error":"#DIV/0!"},{"$error":"#DIV/0!"},null,null,0]
[null,null,null,null,null,null,null,null,null,null,null,null,null,{"$error":"#DIV/0!"},{"$error":"#DIV/0!"},null,null,0]
[null,null,null,null,null,null,null,null,null,null,null,null,null,{"$error":"#DIV/0!"},{"$error":"#DIV/0!"},null,null,0]
[null,null,null,null,null,null,null,null,null,null,null,null,null,{"$error":"#DIV/0!"},{"$error":"#DIV/0!"},null,null,0]
[null,null,null,null,null,null,null,null,null,null,null,null,null,{"$error":"#DIV/0!"},{"$error":"#DIV/0!"},null,null,0]
[null,null,null,null,null,null,null,null,null,null,null,null,null,{"$error":"#DIV/0!"},{"$error":"#DIV/0!"},null,null,0]
[null,null,null,null,null,null,null,null,null,null,null,null,null,{"$error":"#DIV/0!"},{"$error":"#DIV/0!"},null,null,0]
[null,null,null,null,null,null,null,null,null,null,null,null,null,{"$error":"#DIV/0!"},{"$error":"#DIV/0!"},null,null,0]
[null,null,null,null,null,null,null,null,null,null,null,null,null,{"$error":"#DIV/0!"},{"$error":"#DIV/0!"},null,null,0]
[null,null,null,null,null,null,null,null,null,null,null,null,null,{"$error":"#DIV/0!"},{"$error":"#DIV/0!"},null,null,0]
[null,null,null,null,null,null,null,null,null,null,null,null,null,{"$error":"#DIV/0!"},{"$error":"#DIV/0!"},null,null,0]
[null,null,null,null,null,null,null,null,null,null,null,null,null,{"$error":"#DIV/0!"},{"$error":"#DIV/0!"},null,null,0]
[null,null,null,null,null,null,null,null,null,null,null,null,null,{"$error":"#DIV/0!"},{"$error":"#DIV/0!"},null,null,0]
[null,null,null,null,null,null,null,null,null,null,null,null,null,{"$error":"#DIV/0!"},{"$error":"#DIV/0!"},null,null,0]
[null,null,null,null,null,null,null,null,null,null,null,null,null,{"$error":"#DIV/0!"},{"$error":"#DIV/0!"},null,null,0]
[null,null,null,null,null,null,null,null,null,null,null,null,null,{"$error":"#DIV/0!"},{"$error":"#DIV/0!"},null,null,0]
[null,null,null,null,null,null,null,null,null,null,null,null,null,{"$error":"#DIV/0!"},{"$error":"#DIV/0!"},null,null,0]
[null,null,null,null,null,null,null,null,null,null,null,null,null,{"$error":"#DIV/0!"},{"$error":"#DIV/0!"},null,null,0]
[null,null,null,null,null,null,null,null,null,null,null,null,null,{"$error":"#DIV/0!"},{"$error":"#DIV/0!"},null,null,0]
[null,null,null,null,null,null,null,null,null,null,null,null,null,{"$error":"#DIV/0!"},{"$error":"#DIV/0!"},null,null,0]
[null,null,null,null,null,null,null,null,null,null,null,null,null,{"$error":"#DIV/0!"},{"$error":"#DIV/0!"},null,null,0]
[null,null,null,null,null,null,null,null,null,null,null,null,null,{"$error":"#DIV/0!"},{"$error":"#DIV/0!"},null,null,0]
[null,null,null,null,null,null,null,null,null,null,null,null,null,{"$error":"#DIV/0!"},{"$error":"#DIV/0!"},null,null,0]
[null,null,null,null,null,null,null,null,null,null,null,null,null,{"$error":"#DIV/0!"},{"$error":"#DIV/0!"},null,null,0]
[null,null,null,null,null,null,null,null,null,null,null,null,null,{"$error":"#DIV/0!"},{"$error":"#DIV/0!"},null,null,0]
[null,null,null,null,null,null,null,null,null,null,null,null,null,{"$error":"#DIV/0!"},{"$error":"#DIV/0!"},null,null,0]
[null,null,null,null,null,null,null,null,null,null,null,null,null,{"$error":"#DIV/0!"},{"$error":"#DIV/0!"},null,null,0]
[null,null,null,null,null,null,null,null,null,null,null,null,null,{"$error":"#DIV/0!"},{"$error":"#DIV/0!"},null,null,0]
[null,null,null,null,null,null,null,null,null,null,null,null,null,{"$error":"#DIV/0!"},{"$error":"#DIV/0!"},null,null,0]
[null,null,null,null,null,null,null,null,null,null,null,null,null,{"$error":"#DIV/0!"},{"$error":"#DIV/0!"},null,null,0]
[null,null,null,null,null,null,null,null,null,null,null,null,null,{"$error":"#DIV/0!"},{"$error":"#DIV/0!"},null,null,0]
[null,null,null,null,null,null,null,null,null,null,null,null,null,{"$error":"#DIV/0!"},{"$error":"#DIV/0!"},null,null,0]
[null,null,null,null,null,null,null,null,null,null,null,null,null,{"$error":"#DIV/0!"},{"$error":"#DIV/0!"},null,null,0]
[null,null,null,null,null,null,null,null,null,null,null,null,null,{"$error":"#DIV/0!"},{"$error":"#DIV/0!"},null,null,0]
[null,null,null,null,null,null,null,null,null,null,null,null,null,{"$error":"#DIV/0!"},{"$error":"#DIV/0!"},null,null,0]
[null,null,null,null,null,null,null,null,null,null,null,null,null,{"$error":"#DIV/0!"},{"$error":"#DIV/0!"},null,null,0]
[null,null,null,null,null,null,null,null,null,null,null,null,null,{"$error":"#DIV/0!"},{"$error":"#DIV/0!"},null,null,0]
[null,null,null,null,null,null,null,null,null,null,null,null,null,{"$error":"#DIV/0!"},{"$error":"#DIV/0!"},null,null,0]
[null,null,null,null,null,null,null,null,null,null,null,null,null,{"$error":"#DIV/0!"},{"$f":"F223*N223","v":{"$error":"#DIV/0!"}},null,null,{"$f":"F223*Q223","v":0}]
[null,null,null,null,null,null,null,null,null,null,null,null,null,{"$f":"(F224-G224)/F224","v":{"$error":"#DIV/0!"}},{"$error":"#DIV/0!"},null,null,0]
[null,null,null,null,null,null,null,null,null,null,null,null,null,{"$error":"#DIV/0!"},{"$error":"#DIV/0!"},null,null,0]
[null,null,null,null,null,null,null,null,null,null,null,null,null,{"$error":"#DIV/0!"},{"$error":"#DIV/0!"},null,null,0]
[null,null,null,null,null,null,null,null,null,null,null,null,null,{"$error":"#DIV/0!"},{"$error":"#DIV/0!"},null,null,0]
[null,null,null,null,null,null,null,null,null,null,null,null,null,{"$error":"#DIV/0!"},{"$error":"#DIV/0!"},null,null,0]
[null,null,null,null,null,null,null,null,null,null,null,null,null,{"$error":"#DIV/0!"},{"$error":"#DIV/0!"},null,null,0]
[null,null,null,null,null,null,null,null,null,null,null,null,null,{"$error":"#DIV/0!"},{"$error":"#DIV/0!"},null,null,0]
[null,null,null,null,null,null,null,null,null,null,null,null,null,{"$error":"#DIV/0!"},{"$error":"#DIV/0!"},null,null,0]
[null,null,null,null,null,null,null,null,null,null,null,null,null,{"$error":"#DIV/0!"},{"$error":"#DIV/0!"},null,null,0]
[null,null,null,null,null,null,null,null,null,null,null,null,null,{"$error":"#DIV/0!"},{"$error":"#DIV/0!"},null,null,0]
[null,null,null,null,null,null,null,null,null,null,null,null,null,{"$error":"#DIV/0!"},{"$error":"#DIV/0!"},null,null,0]
[null,null,null,null,null,null,null,null,null,null,null,null,null,{"$error":"#DIV/0!"},{"$error":"#DIV/0!"},null,null,0]
[null,null,null,null,null,null,null,null,null,null,null,null,null,{"$error":"#DIV/0!"},{"$error":"#DIV/0!"},null,null,0]
[null,null,null,null,null,null,null,null,null,null,null,null,null,{"$error":"#DIV/0!"},{"$error":"#DIV/0!"},null,null,0]
[null,null,null,null,null,null,null,null,null,null,null,null,null,{"$error":"#DIV/0!"},{"$error":"#DIV/0!"},null,null,0]
[null,null,null,null,null,null,null,null,null,null,null,null,null,{"$error":"#DIV/0!"},{"$error":"#DIV/0!"},null,null,0]
[null,null,null,null,null,null,null,null,null,null,null,null,null,{"$error":"#DIV/0!"},{"$error":"#DIV/0!"},null,null,0]
[null,null,null,null,null,null,null,null,null,null,null,null,null,{"$error":"#DIV/0!"},{"$error":"#DIV/0!"},null,null,0]
[null,null,null,null,null,null,null,null,null,null,null,null,null,{"$error":"#DIV/0!"},{"$error":"#DIV/0!"},null,null,0]
[null,null,null,null,null,null,null,null,null,null,null,null,null,{"$error":"#DIV/0!"},{"$error":"#DIV/0!"},null,null,0]
[null,null,null,null,null,null,null,null,null,null,null,null,null,{"$error":"#DIV/0!"},{"$error":"#DIV/0!"},null,null,0]
[null,null,null,null,null,null,null,null,null,null,null,null,null,{"$error":"#DIV/0!"},{"$error":"#DIV/0!"},null,null,0]
[null,null,null,null,null,null,null,null,null,null,null,null,null,{"$error":"#DIV/0!"},{"$error":"#DIV/0!"},null,null,0]
[null,null,null,null,null,null,null,null,null,null,null,null,null,{"$error":"#DIV/0!"},{"$error":"#DIV/0!"},null,null,0]
[null,null,null,null,null,null,null,null,null,null,null,null,null,{"$error":"#DIV/0!"},{"$error":"#DIV/0!"},null,null,0]
[null,null,null,null,null,null,null,null,null,null,null,null,null,{"$error":"#DIV/0!"},{"$error":"#DIV/0!"},null,null,0]
[null,null,null,null,null,null,null,null,null,null,null,null,null,{"$error":"#DIV/0!"},{"$error":"#DIV/0!"},null,null,0]
[null,null,null,null,null,null,null,null,null,null,null,null,null,{"$error":"#DIV/0!"},{"$error":"#DIV/0!"},null,null,0]
[null,null,null,null,null,null,null,null,null,null,null,null,null,{"$error":"#DIV/0!"},{"$error":"#DIV/0!"},null,null,0]
[null,null,null,null,null,null,null,null,null,null,null,null,null,{"$error":"#DIV/0!"},{"$error":"#DIV/0!"},null,null,0]
[null,null,null,null,null,null,null,null,null,null,null,null,null,{"$error":"#DIV/0!"},{"$error":"#DIV/0!"},null,null,0]
[null,null,null,null,null,null,null,null,null,null,null,null,null,{"$error":"#DIV/0!"},{"$error":"#DIV/0!"},null,null,0]
[null,null,null,null,null,null,null,null,null,null,null,null,null,{"$error":"#DIV/0!"},{"$error":"#DIV/0!"},null,null,0]
[null,null,null,null,null,null,null,null,null,null,null,null,null,{"$error":"#DIV/0!"},{"$error":"#DIV/0!"},null,null,0]
[null,null,null,null,null,null,null,null,null,null,null,null,null,{"$error":"#DIV/0!"},{"$error":"#DIV/0!"},null,null,0]
[null,null,null,null,null,null,null,null,null,null,null,null,null,{"$error":"#DIV/0!"},{"$error":"#DIV/0!"},null,null,0]
[null,null,null,null,null,null,null,null,null,null,null,null,null,{"$error":"#DIV/0!"},{"$error":"#DIV/0!"},null,null,0]
[null,null,null,null,null,null,null,null,null,null,null,null,null,{"$error":"#DIV/0!"},{"$error":"#DIV/0!"},null,null,0]
[null,null,null,null,null,null,null,null,null,null,null,null,null,{"$error":"#DIV/0!"},{"$error":"#DIV/0!"},null,null,0]
[null,null,null,null,null,null,null,null,null,null,null,null,null,{"$error":"#DIV/0!"},{"$error":"#DIV/0!"},null,null,0]
[null,null,null,null,null,null,null,null,null,null,null,null,null,{"$error":"#DIV/0!"},{"$error":"#DIV/0!"},null,null,0]
[null,null,null,null,null,null,null,null,null,null,null,null,null,{"$error":"#DIV/0!"},{"$error":"#DIV/0!"},null,null,0]
[null,null,null,null,null,null,null,null,null,null,null,null,null,{"$error":"#DIV/0!"},{"$error":"#DIV/0!"},null,null,0]
[null,null,null,null,null,null,null,null,null,null,null,null,null,{"$error":"#DIV/0!"},{"$error":"#DIV/0!"},null,null,0]
[null,null,null,null,null,null,null,null,null,null,null,null,null,{"$error":"#DIV/0!"},{"$error":"#DIV/0!"},null,null,0]
[null,null,null,null,null,null,null,null,null,null,null,null,null,{"$error":"#DIV/0!"},{"$error":"#DIV/0!"},null,null,0]
[null,null,null,null,null,null,null,null,null,null,null,null,null,{"$error":"#DIV/0!"},{"$error":"#DIV/0!"},null,null,0]
[null,null,null,null,null,null,null,null,null,null,null,null,null,{"$error":"#DIV/0!"},{"$error":"#DIV/0!"},null,null,0]
[null,null,null,null,null,null,null,null,null,null,null,null,null,{"$error":"#DIV/0!"},{"$error":"#DIV/0!"},null,null,0]
[null,null,null,null,null,null,null,null,null,null,null,null,null,{"$error":"#DIV/0!"},{"$error":"#DIV/0!"},null,null,0]
[null,null,null,null,null,null,null,null,null,null,null,null,null,{"$error":"#DIV/0!"},{"$error":"#DIV/0!"},null,null,0]
[null,null,null,null,null,null,null,null,null,null,null,null,null,{"$error":"#DIV/0!"},{"$error":"#DIV/0!"},null,null,0]
[null,null,null,null,null,null,null,null,null,null,null,null,null,{"$error":"#DIV/0!"},{"$error":"#DIV/0!"},null,null,0]
[null,null,null,null,null,null,null,null,null,null,null,null,null,{"$error":"#DIV/0!"},{"$error":"#DIV/0!"},null,null,0]
[null,null,null,null,null,null,null,null,null,null,null,null,null,{"$error":"#DIV/0!"},{"$error":"#DIV/0!"},null,null,0]
[null,null,null,null,null,null,null,null,null,null,null,null,null,{"$error":"#DIV/0!"},{"$error":"#DIV/0!"},null,null,0]
[null,null,null,null,null,null,null,null,null,null,null,null,null,{"$error":"#DIV/0!"},{"$error":"#DIV/0!"},null,null,0]
[null,null,null,null,null,null,null,null,null,null,null,null,null,{"$error":"#DIV/0!"},{"$error":"#DIV/0!"},null,null,0]
[null,null,null,null,null,null,null,null,null,null,null,null,null,{"$error":"#DIV/0!"},{"$error":"#DIV/0!"},null,null,0]
[null,null,null,null,null,null,null,null,null,null,null,null,null,{"$error":"#DIV/0!"},{"$error":"#DIV/0!"},null,null,0]
[null,null,null,null,null,null,null,null,null,null,null,null,null,{"$error":"#DIV/0!"},{"$error":"#DIV/0!"},null,null,0]
[null,null,null,null,null,null,null,null,null,null,null,null,null,{"$error":"#DIV/0!"},{"$error":"#DIV/0!"},null,null,0]
[null,null,null,null,null,null,null,null,null,null,null,null,null,{"$error":"#DIV/0!"},{"$error":"#DIV/0!"},null,null,0]
[null,null,null,null,null,null,null,null,null,null,null,null,null,{"$error":"#DIV/0!"},{"$f":"F287*N287","v":{"$error":"#DIV/0!"}},null,null,{"$f":"F287*Q287","v":0}]
[null,null,null,null,null,null,null,null,null,null,null,null,null,{"$f":"(F288-G288)/F288","v":{"$error":"#DIV/0!"}},{"$error":"#DIV/0!"},null,null,0]
[null,null,null,null,null,null,null,null,null,null,null,null,null,{"$error":"#DIV/0!"},{"$error":"#DIV/0!"},null,null,0]
[null,null,null,null,null,null,null,null,null,null,null,null,null,{"$error":"#DIV/0!"},{"$error":"#DIV/0!"},null,null,0]
[null,null,null,null,null,null,null,null,null,null,null,null,null,{"$error":"#DIV/0!"},{"$error":"#DIV/0!"},null,null,0]
[null,null,null,null,null,null,null,null,null,null,null,null,null,{"$error":"#DIV/0!"},{"$error":"#DIV/0!"},null,null,0]
[null,null,null,null,null,null,null,null,null,null,null,null,null,{"$error":"#DIV/0!"},{"$error":"#DIV/0!"},null,null,0]
[null,null,null,null,null,null,null,null,null,null,null,null,null,{"$error":"#DIV/0!"},{"$error":"#DIV/0!"},null,null,0]
[null,null,null,null,null,null,null,null,null,null,null,null,null,{"$error":"#DIV/0!"},{"$error":"#DIV/0!"},null,null,0]
[null,null,null,null,null,null,null,null,null,null,null,null,null,{"$error":"#DIV/0!"},{"$error":"#DIV/0!"},null,null,0]
[null,null,null,null,null,null,null,null,null,null,null,null,null,{"$error":"#DIV/0!"},{"$error":"#DIV/0!"},null,null,0]
[null,null,null,null,null,null,null,null,null,null,null,null,null,{"$error":"#DIV/0!"},{"$error":"#DIV/0!"},null,null,0]
[null,null,null,null,null,null,null,null,null,null,null,null,null,{"$error":"#DIV/0!"},{"$error":"#DIV/0!"},null,null,0]
[null,null,null,null,null,null,null,null,null,null,null,null,null,{"$error":"#DIV/0!"},{"$error":"#DIV/0!"},null,null,0]
[null,null,null,null,null,null,null,null,null,null,null,null,null,{"$error":"#DIV/0!"},{"$error":"#DIV/0!"},null,null,0]
[null,null,null,null,null,null,null,null,null,null,null,null,null,{"$error":"#DIV/0!"},{"$error":"#DIV/0!"},null,null,0]
[null,null,null,null,null,null,null,null,null,null,null,null,null,{"$error":"#DIV/0!"},{"$error":"#DIV/0!"},null,null,0]
[null,null,null,null,null,null,null,null,null,null,null,null,null,{"$error":"#DIV/0!"},{"$error":"#DIV/0!"},null,null,0]
[null,null,null,null,null,null,null,null,null,null,null,null,null,{"$error":"#DIV/0!"},{"$error":"#DIV/0!"},null,null,0]
[null,null,null,null,null,null,null,null,null,null,null,null,null,{"$error":"#DIV/0!"},{"$error":"#DIV/0!"},null,null,0]
[null,null,null,null,null,null,null,null,null,null,null,null,null,{"$error":"#DIV/0!"},{"$error":"#DIV/0!"},null,null,0]
[null,null,null,null,null,null,null,null,null,null,null,null,null,{"$error":"#DIV/0!"},{"$error":"#DIV/0!"},null,null,0]
[null,null,null,null,null,null,null,null,null,null,null,null,null,{"$error":"#DIV/0!"},{"$error":"#DIV/0!"},null,null,0]
[null,null,null,null,null,null,null,null,null,null,null,null,null,{"$error":"#DIV/0!"},{"$error":"#DIV/0!"},null,null,0]
[null,null,null,null,null,null,null,null,null,null,null,null,null,{"$error":"#DIV/0!"},{"$error":"#DIV/0!"},null,null,0]
[null,null,null,null,null,null,null,null,null,null,null,null,null,{"$error":"#DIV/0!"},{"$error":"#DIV/0!"},null,null,0]
[null,null,null,null,null,null,null,null,null,null,null,null,null,{"$error":"#DIV/0!"},{"$error":"#DIV/0!"},null,null,0]
[null,null,null,null,null,null,null,null,null,null,null,null,null,{"$error":"#DIV/0!"},{"$error":"#DIV/0!"},null,null,0]
[null,null,null,null,null,null,null,null,null,null,null,null,null,{"$error":"#DIV/0!"},{"$error":"#DIV/0!"},null,null,0]
[null,null,null,null,null,null,null,null,null,null,null,null,null,{"$error":"#DIV/0!"},{"$error":"#DIV/0!"},null,null,0]
[null,null,null,null,null,null,null,null,null,null,null,null,null,{"$error":"#DIV/0!"},{"$error":"#DIV/0!"},null,null,0]
[null,null,null,null,null,null,null,null,null,null,null,null,null,{"$error":"#DIV/0!"},{"$error":"#DIV/0!"},null,null,0]
[null,null,null,null,null,null,null,null,null,null,null,null,null,{"$error":"#DIV/0!"},{"$error":"#DIV/0!"},null,null,0]
[null,null,null,null,null,null,null,null,null,null,null,null,null,{"$error":"#DIV/0!"},{"$error":"#DIV/0!"},null,null,0]
[null,null,null,null,null,null,null,null,null,null,null,null,null,{"$error":"#DIV/0!"},{"$error":"#DIV/0!"},null,null,0]
[null,null,null,null,null,null,null,null,null,null,null,null,null,{"$error":"#DIV/0!"},{"$error":"#DIV/0!"},null,null,0]
[null,null,null,null,null,null,null,null,null,null,null,null,null,{"$error":"#DIV/0!"},{"$error":"#DIV/0!"},null,null,0]
[null,null,null,null,null,null,null,null,null,null,null,null,null,{"$error":"#DIV/0!"},{"$error":"#DIV/0!"},null,null,0]
[null,null,null,null,null,null,null,null,null,null,null,null,null,{"$error":"#DIV/0!"},{"$error":"#DIV/0!"},null,null,0]
[null,null,null,null,null,null,null,null,null,null,null,null,null,{"$error":"#DIV/0!"},{"$error":"#DIV/0!"},null,null,0]
[null,null,null,null,null,null,null,null,null,null,null,null,null,{"$error":"#DIV/0!"},{"$error":"#DIV/0!"},null,null,0]
[null,null,null,null,null,null,null,null,null,null,null,null,null,{"$error":"#DIV/0!"},{"$error":"#DIV/0!"},null,null,0]
[null,null,null,null,null,null,null,null,null,null,null,null,null,{"$error":"#DIV/0!"},{"$error":"#DIV/0!"},null,null,0]
[null,null,null,null,null,null,null,null,null,null,null,null,null,{"$error":"#DIV/0!"},{"$error":"#DIV/0!"},null,null,0]
[null,null,null,null,null,null,null,null,null,null,null,null,null,{"$error":"#DIV/0!"},{"$error":"#DIV/0!"},null,null,0]
[null,null,null,null,null,null,null,null,null,null,null,null,null,{"$error":"#DIV/0!"},{"$error":"#DIV/0!"},null,null,0]
[null,null,null,null,null,null,null,null,null,null,null,null,null,{"$error":"#DIV/0!"},{"$error":"#DIV/0!"},null,null,0]
["Total",null,null,null,null,null,null,null,null,null,null,{"$f":"SUM(L30:L333)","v":0},null,{"$error":"#DIV/0!"},{"$error":"#DIV/0!"},null,null,0]
["Terms and Conditions:"]
["- We are not required to advertise, display, or offer for sale any product except as stated in \"Event Description.\" If \"ad\" is stated, we will circulate an ad for one or more of the products in \"Item Description\".  "]
[" The type, design and location of display, number and location of stores with the display, and dates of display will be within our sale discretion."]
[" We are not required to charge a specific retail price, or alter its customary retail price, for any product except as stated in \"Event Description,\" and does not agree to a minimum retail price.  Any other reference to retail price is only a suggestion."]
[" All PO's processed during deal time frame are subject to lower cost."]
["-This DOF, when signed by us, is a contract.  Any subsequent modification must be in writing, email, or fax that clearly identifies the DOF modified and the parties making the modification.  This is the complete and only agreement between the parties; re: the promotional offer described, and shall not be interpreted or construed against the drafting party.  The individuals who sign this DOF warrant they are authorized to sign on behalf of our company or Supplier, and no other signatures are  necessary to bind us or Supplier."]
["Authorized Company Representative",null,null,"Acceptance Date"]
[]
["Authorized Supplier Representative",null,null,"Acceptance Date"]
[]
["NAVY  -   Deal Offer Form  -  NAVY                  NAVY  -   Deal Offer Form  -  NAVY                      NAVY  -   Deal Offer Form  -  NAVY                   NAVY  -   Deal Offer Form  -  NAVY"]